fUSD/lending_fUSD_20251220
["ID","MTS","AMOUNT","RATE_DAILY","PERIOD"]
[399306814,1766273442743,-500.0,0.00013891,2]
[399306815,1766273442752,-500.0,0.00013891,2]
[399306816,1766273442761,-500.0,0.00013891,2]
[399306817,1766273442770,-517.41741792,0.00013891,2]
[399306818,1766273442780,-500.0,0.00013891,2]
[399306819,1766273442789,-500.0,0.00013891,2]
[399306820,1766273442799,-500.0,0.00013891,2]
[399306821,1766273442808,-500.0,0.00013891,2]
[399306822,1766273442818,-500.0,0.00013891,2]
[399306823,1766273442827,-500.0,0.00013891,2]
[399306824,1766273442837,-500.0,0.00013891,2]
[399306825,1766273442846,-500.0,0.00013891,2]
[399306826,1766273442855,-541.48637229,0.00013891,2]
[399306827,1766273442865,-500.0,0.00013891,2]
[399306828,1766273442874,-500.0,0.00013891,2]
[399306829,1766273442884,-500.0,0.00013891,2]
[399306830,1766273442894,-500.0,0.00013891,2]
[399306831,1766273442903,-500.0,0.00013891,2]
[399306832,1766273442913,-500.0,0.00013891,2]
[399306833,1766273442923,-500.0,0.00013891,2]
[399306834,1766273442932,-500.0,0.00013891,2]
[399306835,1766273442942,-151.0,0.00013891,2]
[399306836,1766273442953,-151.0,0.00013891,2]
[399306837,1766273442962,-151.0,0.00013891,2]
[399306838,1766273442971,-151.0,0.00013891,2]
[399306839,1766273442981,-151.0,0.00013891,2]
[399306840,1766273442991,-151.0,0.00013891,2]
[399306841,1766273443000,-151.0,0.00013891,2]
[399306842,1766273443011,-157.261992,0.00013891,2]
[399306843,1766273443020,-272.402995,0.00013891,2]
[399306844,1766273443030,-272.402995,0.00013891,2]
[399306846,1766273443040,-272.402995,0.00013891,2]
[399306848,1766273443049,-272.402995,0.00013891,2]
[399306849,1766273443058,-431.07952,0.00013891,2]
[399306850,1766273443068,-431.07952,0.00013891,2]
[399306851,1766273443077,-431.07952,0.00013891,2]
[399306853,1766273443086,-431.07952,0.00013891,2]
[399306855,1766273443096,-277.56507006,0.00013902,2]
[399306856,1766273443106,-166.66,0.00013973,2]
[399306857,1766273443115,-311.1,0.00013975,2]
[399306858,1766273443126,-500.0,0.00013999,2]
[399306859,1766273443136,-500.0,0.00013999,2]
[399306860,1766273443146,-500.0,0.00013999,2]
[399306861,1766273443156,-585.72,0.00013999,2]
[399306862,1766273443166,-500.0,0.00013999,2]
[399306863,1766273443176,-500.0,0.00013999,2]
[399306864,1766273443185,-500.0,0.00013999,2]
[399306865,1766273443196,-500.0,0.00013999,2]
[399306866,1766273443206,-511.85238157,0.00013999,2]
[399306867,1766273443217,-500.0,0.00013999,2]
[399306868,1766273443227,-500.0,0.00013999,2]
[399306869,1766273443236,-500.0,0.00013999,2]
[399306870,1766273443245,-500.0,0.00013999,2]
[399306871,1766273443254,-500.0,0.00013999,2]
[399306872,1766273443264,-500.0,0.00013999,2]
[399306873,1766273443273,-176.72829277,0.00013999,2]
[399306874,1766273443284,-500.0,0.00013999,2]
[399306875,1766273443293,-512.34192822,0.00013999,2]
[399306876,1766273443302,-500.0,0.00013999,2]
[399306877,1766273443312,-500.0,0.00013999,2]
[399306878,1766273443321,-500.0,0.00013999,2]
[399306879,1766273443330,-525.81730322,0.00013999,2]
[399306880,1766273443339,-151.0,0.00013999,2]
[399306881,1766273443349,-151.0,0.00013999,2]
[399306882,1766273443358,-205.949323,0.00013999,2]
[399306883,1766273443368,-272.402995,0.00013999,2]
[399306884,1766273443377,-272.402995,0.00013999,2]
[399306885,1766273443387,-272.402995,0.00013999,2]
[399306886,1766273443396,-272.402995,0.00013999,2]
[399306887,1766273443405,-431.07952,0.00013999,2]
[399306888,1766273443415,-431.07952,0.00013999,2]
[399306889,1766273443424,-431.07952,0.00013999,2]
[399306890,1766273443433,-431.07952,0.00013999,2]
[399306891,1766273443443,-506.77458399,0.00014046,2]
[399306892,1766273443452,-151.0,0.00014075,2]
[399306893,1766273443461,-173.489344,0.00014078,2]
[399306894,1766273443470,-151.0,0.00014078,2]
[399306895,1766273443480,-151.0,0.00014078,2]
[399306896,1766273443489,-166.66,0.0001411,2]
[399306897,1766273443498,-500.0,0.00014199,2]
[399306898,1766273443507,-500.0,0.00014199,2]
[399306899,1766273443517,-500.0,0.00014199,2]
[399306900,1766273443526,-500.0,0.00014199,2]
[399306901,1766273443535,-500.0,0.00014199,2]
[399306902,1766273443544,-500.0,0.00014199,2]
[399306903,1766273443553,-500.0,0.00014199,2]
[399306904,1766273443562,-500.0,0.00014199,2]
[399306905,1766273443571,-504.18441276,0.00014199,2]
[399306906,1766273443580,-459.34986606,0.00014199,6]
[399306907,1766273443589,-150.0,0.000142,2]
[399306908,1766273443598,-5750.0308088,0.000142,2]
[399306909,1766273443607,-150.0,0.000142,2]
[399306910,1766273443617,-48899.0338922,0.000142,2]
[399306911,1766273443626,-211.215346,0.000142,2]
[399306912,1766273443635,-1000.0,0.000142,2]
[399306913,1766273443644,-1000.0,0.000142,2]
[399306914,1766273443655,-1000.0,0.000142,2]
[399306915,1766273443665,-1000.0,0.000142,2]
[399306916,1766273443676,-1000.0,0.000142,2]
[399306917,1766273443686,-1000.0,0.000142,2]
[399306918,1766273443698,-1000.0,0.000142,2]
[399306919,1766273443708,-1000.0,0.000142,2]
[399306920,1766273443717,-1000.0,0.000142,2]
[399306921,1766273443727,-1000.0,0.000142,2]
[399306922,1766273443736,-1000.0,0.000142,2]
[399306923,1766273443745,-1000.0,0.000142,2]
[399306924,1766273443754,-1000.0,0.000142,2]
[399306925,1766273443763,-1000.0,0.000142,2]
[399306926,1766273443772,-1000.0,0.000142,2]
[399306927,1766273443782,-1000.0,0.000142,2]
[399306928,1766273443791,-1000.0,0.000142,2]
[399306929,1766273443800,-1000.0,0.000142,2]
[399306930,1766273443810,-1000.0,0.000142,2]
[399306932,1766273443819,-1000.0,0.000142,2]
[399306934,1766273443829,-1000.0,0.000142,2]
[399306936,1766273443849,-1000.0,0.000142,2]
[399306937,1766273443867,-1000.0,0.000142,2]
[399306938,1766273443877,-1000.0,0.000142,2]
[399306939,1766273443886,-1000.0,0.000142,2]
[399306940,1766273443895,-1000.0,0.000142,2]
[399306941,1766273443905,-1000.0,0.000142,2]
[399306942,1766273443915,-1000.0,0.000142,2]
[399306943,1766273443924,-1000.0,0.000142,2]
[399306944,1766273443935,-1000.0,0.000142,2]
[399306945,1766273443944,-1000.0,0.000142,2]
[399306946,1766273443955,-1000.0,0.000142,2]
[399306947,1766273443965,-1000.0,0.000142,2]
[399306948,1766273443974,-1000.0,0.000142,2]
[399306949,1766273443984,-1000.0,0.000142,2]
[399306950,1766273443993,-1000.0,0.000142,2]
[399306951,1766273444003,-1000.0,0.000142,2]
[399306952,1766273444012,-1000.0,0.000142,2]
[399306953,1766273444021,-1000.0,0.000142,2]
[399306954,1766273444030,-1000.0,0.000142,2]
[399306955,1766273444040,-1000.0,0.000142,2]
[399306956,1766273444050,-1000.0,0.000142,2]
[399306957,1766273444060,-1000.0,0.000142,2]
[399306958,1766273444070,-1000.0,0.000142,2]
[399306959,1766273444080,-1000.0,0.000142,2]
[399306960,1766273444090,-1000.0,0.000142,2]
[399306961,1766273444099,-1000.0,0.000142,2]
[399306962,1766273444109,-1000.0,0.000142,2]
[399306963,1766273444118,-1000.0,0.000142,2]
[399306964,1766273444128,-1000.0,0.000142,2]
[399306965,1766273444137,-1000.0,0.000142,2]
[399306966,1766273444147,-1000.0,0.000142,2]
[399306967,1766273444157,-1000.0,0.000142,2]
[399306968,1766273444166,-1000.0,0.000142,2]
[399306969,1766273444176,-1000.0,0.000142,2]
[399306970,1766273444185,-1000.0,0.000142,2]
[399306971,1766273444194,-1000.0,0.000142,2]
[399306972,1766273444204,-1000.0,0.000142,2]
[399306973,1766273444213,-1000.0,0.000142,2]
[399306974,1766273444222,-1000.0,0.000142,2]
[399306975,1766273444232,-1000.0,0.000142,2]
[399306976,1766273444242,-1000.0,0.000142,2]
[399306977,1766273444252,-1000.0,0.000142,2]
[399306978,1766273444263,-1000.0,0.000142,2]
[399306979,1766273444272,-1000.0,0.000142,2]
[399306980,1766273444282,-1000.0,0.000142,2]
[399306981,1766273444292,-1000.0,0.000142,2]
[399306982,1766273444301,-1000.0,0.000142,2]
[399306983,1766273444310,-1000.0,0.000142,2]
[399306984,1766273444320,-1000.0,0.000142,2]
[399306985,1766273444330,-1000.0,0.000142,2]
[399306986,1766273444338,-1000.0,0.000142,2]
[399306987,1766273444348,-394.42,0.000142,2]
[399306988,1766273444357,-151.0,0.000142,2]
[399306989,1766273444366,-151.0,0.000142,2]
[399306990,1766273444374,-151.0,0.000142,2]
[399306991,1766273444595,-151.0,0.000142,2]
[399306992,1766273444604,-151.0,0.000142,2]
[399306993,1766273444613,-151.0,0.000142,2]
[399306994,1766273444622,-151.0,0.000142,2]
[399306995,1766273444631,-151.0,0.000142,2]
[399306996,1766273444640,-272.402995,0.000142,2]
[399306997,1766273444651,-272.402995,0.000142,2]
[399306998,1766273444661,-272.402995,0.000142,2]
[399306999,1766273444670,-272.402995,0.000142,2]
[399307000,1766273444680,-272.402995,0.000142,2]
[399307001,1766273444689,-272.402995,0.000142,2]
[399307002,1766273444698,-272.402995,0.000142,2]
[399307003,1766273444708,-272.403001,0.000142,2]
[399307004,1766273444717,-431.07952,0.000142,2]
[399307005,1766273444726,-431.07952,0.000142,2]
[399307006,1766273444735,-431.07952,0.000142,2]
[399307007,1766273444745,-431.07952,0.000142,2]
[399307008,1766273444754,-431.07952,0.000142,2]
[399307009,1766273444763,-431.07952,0.000142,2]
[399307010,1766273444771,-431.07952,0.000142,2]
[399307011,1766273444781,-431.079512,0.000142,2]
[399307012,1766273444790,-166.66,0.00014213,2]
[399307013,1766273444799,-166.66,0.00014247,2]
[399307014,1766273444808,-5000.0,0.000143,2]
[399307015,1766273444818,-1893.8212014,0.00014331,2]
[399307016,1766273444826,-617.40005154,0.0001435,2]
[399307017,1766273444836,-151.0,0.0001435,2]
[399307018,1766273444845,-166.68,0.00014362,2]
[399307019,1766273444854,-1000.0,0.0001437,2]
[399307020,1766273444863,-166.66,0.00014384,2]
[399307021,1766273444873,-500.0,0.00014421,2]
[399307022,1766273444882,-500.0,0.00014421,2]
[399307023,1766273444891,-500.0,0.00014421,2]
[399307024,1766273444900,-506.77458399,0.00014522,2]
[399307025,1766273444909,-1262.0,0.00014562,2]
[399307026,1766273444919,-518.0,0.00014562,2]
[399307027,1766273444927,-1197.0,0.00014562,2]
[399307028,1766273444936,-911.0,0.00014562,2]
[399307029,1766273444945,-612.0,0.00014562,2]
[399307030,1766273444954,-1608.0,0.00014562,2]
[399307031,1766273444963,-3455.0,0.00014562,2]
[399307032,1766273444972,-1213.70128937,0.00014603,5]
[399307033,1766273444985,-422.5686279,0.00014691,2]
[399307034,1766273444994,-166.66,0.00014735,2]
[399307035,1766273445004,-500.0,0.00014741,2]
[399307036,1766273445013,-640.24385345,0.00014898,2]
[399307037,1766273445022,-151.0,0.00014898,2]
[399307038,1766273445032,-506.77458399,0.00014997,2]
[399307039,1766273445046,-200.0,0.00015,2]
[399307040,1766273445055,-173.45,0.00015,2]
[399307041,1766273445065,-779.62,0.00015056,2]
[399307042,1766273445074,-900.0,0.00015068,2]
[399307043,1766273445084,-250.0,0.00015157,2]
[399307044,1766273445093,-599.60298507,0.00015162,2]
[399307045,1766273445102,-587.0,0.00015178,2]
[399307046,1766273445111,-587.0,0.00015178,2]
[399307047,1766273445120,-1255.0,0.00015226,2]
[399307048,1766273445129,-153.0,0.00015226,2]
[399307049,1766273445138,-2351.0,0.00015257,2]
[399307050,1766273445147,-395.0,0.00015257,2]
[399307051,1766273445156,-395.0,0.00015266,2]
[399307052,1766273445166,-395.0,0.00015287,2]
[399307053,1766273445176,-150.0,0.00015288,2]
[399307054,1766273445186,-150.0,0.00015288,2]
[399307055,1766273445195,-500.0,0.00015315,2]
[399307056,1766273445204,-322.6107,0.00015344,2]
[399307057,1766273445214,-395.0,0.00015348,2]
[399307058,1766273445223,-395.0,0.00015378,2]
[399307059,1766273445232,-395.0,0.00015398,2]
[399307060,1766273445243,-151.0,0.00015444,2]
[399307061,1766273445252,-721.12765535,0.00015445,2]
[399307062,1766273445262,-207.4,0.00015445,2]
[399307063,1766273445271,-663.93287602,0.00015446,2]
[399307064,1766273445281,-151.0,0.00015446,2]
[399307065,1766273445290,-395.0,0.00015468,2]
[399307066,1766273445299,-506.77458399,0.00015473,2]
[399307067,1766273445308,-500.0,0.0001548,2]
[399307068,1766273445318,-500.0,0.0001548,2]
[399307069,1766273445327,-500.0,0.0001548,2]
[399307070,1766273445336,-500.0,0.0001548,2]
[399307071,1766273445346,-397.0,0.00015481,2]
[399307072,1766273445356,-395.0,0.00015495,2]
[399307073,1766273445366,-397.0,0.00015498,2]
[399307074,1766273445375,-395.0,0.00015559,2]
[399307075,1766273445385,-395.0,0.00015605,2]
[399307076,1766273445394,-395.0,0.00015679,2]
[399307077,1766273445405,-395.0,0.00015722,2]
[399307078,1766273445415,-395.0,0.0001573,2]
[399307079,1766273445424,-10000.0,0.00015899,2]
[399307080,1766273445434,-506.77458399,0.00015949,2]
[399307081,1766273445444,-1000.0,0.00015966,2]
[399307082,1766273445456,-688.49839244,0.00015994,2]
[399307083,1766273445465,-153.78508436,0.00015994,2]
[399307084,1766273445475,-500.0,0.00015999,2]
[399307085,1766273445486,-500.0,0.00015999,2]
[399307086,1766273445495,-500.0,0.00015999,2]
[399307087,1766273445506,-500.0,0.00015999,2]
[399307088,1766273445515,-500.0,0.00015999,2]
[399307089,1766273445524,-500.0,0.00015999,2]
[399307090,1766273445535,-500.0,0.00015999,2]
[399307091,1766273445545,-500.0,0.00015999,2]
[399307092,1766273445554,-1513.54,0.00015999,2]
[399307093,1766273445563,-1513.54,0.00015999,2]
[399307094,1766273445572,-1513.54,0.00015999,2]
[399307095,1766273445581,-1513.54,0.00015999,2]
[399307096,1766273445590,-500.0,0.00015999,2]
[399307097,1766273445599,-510.1518426,0.00015999,2]
[399307098,1766273445608,-500.0,0.00015999,2]
[399307099,1766273445617,-500.0,0.00015999,2]
[399307100,1766273445627,-500.0,0.00015999,2]
[399307101,1766273445636,-500.0,0.00015999,2]
[399307102,1766273445647,-500.0,0.00015999,2]
[399307103,1766273445659,-500.0,0.00015999,2]
[399307104,1766273445668,-500.0,0.00015999,2]
[399307105,1766273445678,-500.0,0.00015999,2]
[399307106,1766273445687,-500.0,0.00015999,2]
[399307107,1766273445699,-500.0,0.00015999,2]
[399307108,1766273445710,-500.0,0.00015999,2]
[399307109,1766273445719,-500.0,0.00015999,2]
[399307110,1766273445730,-500.0,0.00015999,2]
[399307111,1766273445739,-177.55,0.00015999,5]
[399307112,1766273445749,-847793.21233506,0.00016,4]
[399307113,1766273445761,-459.43083998,0.00016,2]
[399307114,1766273445771,-5000.00173956,0.000162,5]
[399307115,1766273445780,-506.77458399,0.00016424,2]
[399307116,1766273445789,-9594.1,0.00016438,2]
[399307117,1766273445798,-600.0,0.00016438,2]
[399307118,1766273445807,-900.0,0.00016438,2]
[399307119,1766273445817,-10244.69,0.00016438,2]
[399307120,1766273445826,-151.0,0.00016438,2]
[399307121,1766273445835,-232.026225,0.00016438,2]
[399307122,1766273445845,-300.0,0.00016438,3]
[399307123,1766273445857,-300.0,0.00016438,3]
[399307124,1766273445868,-300.0,0.00016438,3]
[399307125,1766273445878,-300.0,0.00016438,3]
[399307126,1766273445889,-300.0,0.00016438,3]
[399307127,1766273445900,-713.97283296,0.00016542,2]
[399307128,1766273445910,-779.62,0.00016562,2]
[399307129,1766273445920,-823.0,0.00016652,2]
[399307130,1766273445931,-628.0,0.00016652,2]
[399307131,1766273445940,-167.75,0.00016712,2]
[399307132,1766273445950,-334.5472959,0.00016713,2]
[399307133,1766273445960,-2083.0,0.00016783,2]
[399307134,1766273445969,-500.0,0.00016799,2]
[399307135,1766273445979,-500.0,0.00016799,2]
[399307136,1766273445988,-500.0,0.00016799,2]
[399307138,1766273445997,-500.0,0.00016799,2]
[399307139,1766273446006,-151.0,0.00016813,2]
[399307141,1766273446015,-500.0,0.00016899,2]
[399307143,1766273446025,-500.0,0.00016899,2]
[399307144,1766273446034,-500.0,0.00016899,2]
[399307145,1766273446044,-616.35544401,0.000169,2]
[399307146,1766273446059,-506.77458399,0.000169,2]
[399307147,1766273446068,-186.21416739,0.000169,2]
[399307148,1766273446077,-5618.17091914,0.000169,2]
[399307149,1766273446086,-808.6212373,0.000169,2]
[399307150,1766273446095,-500.0,0.000169,2]
[399307151,1766273446104,-500.0,0.000169,2]
[399307152,1766273446114,-500.0,0.000169,2]
[399307153,1766273446123,-500.0,0.000169,2]
[399307154,1766273446132,-500.0,0.000169,2]
[399307155,1766273446141,-311.61071553,0.000169,2]
[399307156,1766273446150,-598.95449494,0.0001697,2]
[399307157,1766273446159,-500.0,0.0001697,2]
[399307158,1766273446169,-500.0,0.0001697,2]
[399307159,1766273446178,-1302.14887411,0.0001697,2]
[399307160,1766273446187,-1000.0,0.0001697,2]
[399307161,1766273446197,-500.0,0.0001697,2]
[399307162,1766273446208,-500.0,0.0001697,2]
[399307163,1766273446223,-1000.0,0.0001697,2]
[399307164,1766273446233,-500.0,0.00016973,2]
[399307165,1766273446243,-500.0,0.00016986,2]
[399307166,1766273446252,-1513.54,0.00016986,2]
[399307167,1766273446262,-600.0,0.00016986,2]
[399307168,1766273446272,-52831.43,0.00016986,2]
[399307169,1766273446281,-150.0,0.00016986,2]
[399307170,1766273446291,-1526.74563698,0.00016998,2]
[399307171,1766273446300,-500.0,0.00016999,2]
[399307172,1766273446309,-500.0,0.00016999,2]
[399307173,1766273446318,-500.0,0.00016999,2]
[399307174,1766273446327,-500.0,0.00016999,2]
[399307175,1766273446337,-500.0,0.00016999,2]
[399307176,1766273446346,-500.0,0.00016999,2]
[399307177,1766273446355,-500.0,0.00016999,2]
[399307178,1766273446365,-500.0,0.00016999,2]
[399307179,1766273446374,-500.0,0.00016999,2]
[399307180,1766273446384,-500.0,0.00016999,2]
[399307181,1766273446394,-500.0,0.00016999,2]
[399307182,1766273446404,-500.0,0.00016999,2]
[399307183,1766273446413,-500.0,0.00016999,2]
[399307184,1766273446422,-500.0,0.00016999,2]
[399307185,1766273446432,-500.0,0.00016999,2]
[399307186,1766273446441,-500.0,0.00016999,2]
[399307187,1766273446450,-500.0,0.00016999,2]
[399307188,1766273446459,-500.0,0.00016999,2]
[399307189,1766273446469,-500.0,0.00016999,2]
[399307190,1766273446478,-428.6,0.00016999,2]
[399307191,1766273446488,-500.0,0.00016999,2]
[399307192,1766273446497,-500.0,0.00016999,2]
[399307193,1766273446506,-213.36286492,0.00016999,2]
[399307194,1766273446516,-632.65,0.00016999,2]
[399307195,1766273446526,-500.0,0.00016999,2]
[399307196,1766273446535,-500.0,0.00016999,2]
[399307197,1766273446544,-500.0,0.00016999,2]
[399307198,1766273446553,-500.0,0.00016999,2]
[399307199,1766273446563,-500.0,0.00016999,2]
[399307200,1766273446572,-500.0,0.00016999,2]
[399307201,1766273446581,-500.0,0.00016999,2]
[399307203,1766273446594,-500.0,0.00016999,2]
[399307205,1766273446603,-157.71387419,0.00016999,2]
[399307206,1766273446612,-500.0,0.00016999,2]
[399307207,1766273446622,-1513.54,0.00016999,2]
[399307208,1766273446631,-1513.54,0.00016999,2]
[399307209,1766273446640,-1513.54,0.00016999,2]
[399307210,1766273446650,-1513.54,0.00016999,2]
[399307211,1766273446662,-1513.54,0.00016999,2]
[399307212,1766273446671,-1513.54,0.00016999,2]
[399307213,1766273446680,-1513.54,0.00016999,2]
[399307214,1766273446689,-1513.54,0.00016999,2]
[399307215,1766273446698,-1513.54,0.00016999,2]
[399307216,1766273446708,-1513.54,0.00016999,2]
[399307217,1766273446717,-1513.54,0.00016999,2]
[399307218,1766273446726,-1513.54,0.00016999,2]
[399307219,1766273446736,-1513.54,0.00016999,2]
[399307220,1766273446745,-1513.54,0.00016999,2]
[399307221,1766273446754,-1513.58404604,0.00016999,2]
[399307222,1766273446763,-511.45159126,0.00016999,2]
[399307223,1766273446773,-500.0,0.00016999,2]
[399307224,1766273446782,-500.0,0.00016999,2]
[399307225,1766273446791,-500.0,0.00016999,2]
[399307226,1766273446801,-500.0,0.00016999,2]
[399307227,1766273446810,-500.0,0.00016999,2]
[399307228,1766273446819,-500.0,0.00016999,2]
[399307229,1766273446828,-500.0,0.00016999,2]
[399307230,1766273446838,-500.0,0.00016999,2]
[399307231,1766273446847,-537.03290161,0.00016999,2]
[399307232,1766273446856,-604.31886581,0.00016999,2]
[399307233,1766273446866,-1410661.46917602,0.00017,2]
[399307234,1766273448790,-1065.32192759,0.00012613,2]
[399307235,1766273448807,-335.85847241,0.00012613,2]
[399307236,1766273448820,-191.18432792,0.00012619,2]
[399307237,1766273448834,-1050.27623414,0.00014562,2]
[399307238,1766273448852,-275.72376586,0.00014562,2]
[399307239,1766273448866,-804.9130318,0.000159,2]
[399307240,1766273448879,-804.9130318,0.000161,2]
[399307241,1766273448895,-804.9130318,0.000163,2]
[399307242,1766273448909,-804.9130318,0.000165,2]
[399307243,1766273448924,-804.9130318,0.000167,2]
[399307244,1766273448938,-804.9130318,0.000169,2]
[399307245,1766273448954,-1363.71988628,0.00017,2]
[399307246,1766273448972,-3050.21303154,0.00017,2]
[399307315,1766274433399,-200.0,0.00011567,2]
[399307316,1766274433423,-224.72664405,0.00011606,2]
[399307317,1766274434941,-188.36618062,0.00011606,2]
[399307318,1766274440012,-406.55394446,0.00011606,2]
[399307326,1766274548871,517.20016765,0.000135,4]
[399307327,1766274553302,-180.35323087,0.00011606,2]
[399307328,1766274553325,-16.51893373,0.0001167,2]
[399307329,1766274555292,-283.48106627,0.0001167,2]
[399307330,1766274555317,-7.26611638,0.00011735,2]
[399307331,1766274557399,-169.86523489,0.00011735,2]
[399307338,1766274631340,-17.86864873,0.00011735,2]
[399307340,1766274631349,-300.0,0.00011796,2]
[399307341,1766274631359,-195.0,0.00011861,2]
[399307342,1766274631368,-1033.69427478,0.00011864,2]
[399307343,1766274631404,-394.08572522,0.00011864,2]
[399307344,1766274631414,-217.98427478,0.00011867,2]
[399307345,1766274631425,-1690.38492522,0.00011867,2]
[399307346,1766274631434,-247.32574302,0.00011967,2]
[399307347,1766274631449,-486.87103,0.00011967,2]
[399307348,1766274631460,-936.53322698,0.00011967,2]
[399307349,1766274631469,-150.0,0.00012302,2]
[399307350,1766274631478,-300.0,0.00012302,2]
[399307351,1766274631487,-190.74146921,0.00012302,2]
[399307352,1766274631500,-1009.25853079,0.00012302,2]
[399307353,1766274631510,-300.0,0.00012302,2]
[399307354,1766274631519,-8864.62965529,0.00012303,2]
[399307355,1766274631531,-1135.36034471,0.00012303,2]
[399307356,1766274631540,-150.99,0.00012303,2]
[399307357,1766274631551,-810.64965529,0.00012303,2]
[399307358,1766274631562,-16384.80071477,0.00012303,2]
[399307359,1766274631573,-3017.07962994,0.00012303,2]
[399307360,1766274631582,-234.19421572,0.00012311,2]
[399307361,1766274631593,-999.96678428,0.00012311,2]
[399307362,1766274631603,-3472.75233069,0.00012312,2]
[399307364,1766274637404,-18483.83766931,0.00012312,2]
[399307365,1766274637414,-163.78,0.00012319,2]
[399307366,1766274637423,-445.2839054,0.00012488,2]
[399307367,1766274637433,-8018.11,0.00012505,2]
[399307368,1766274637447,-7792.06030952,0.00012513,2]
[399307369,1766274637457,-240.17037308,0.00012513,2]
[399307370,1766274637467,-182.2303943,0.00012513,2]
[399307371,1766274637476,-583.0,0.00012513,2]
[399307372,1766274637486,-587.51,0.00012598,2]
[399307373,1766274637496,-500.0,0.00012598,2]
[399307374,1766274637510,-200.0,0.00012598,2]
[399307375,1766274637520,-500.0,0.00012598,2]
[399307376,1766274637530,-50.02931745,0.00012598,2]
[399307377,1766274637541,-449.97068255,0.00012598,2]
[399307378,1766274637552,-500.0,0.00012598,2]
[399307379,1766274637562,-500.0,0.00012598,2]
[399307380,1766274637573,-500.0,0.00012598,2]
[399307381,1766274637583,-500.0,0.00012598,2]
[399307382,1766274637592,-151.0,0.00012598,2]
[399307383,1766274637602,-151.0,0.00012598,2]
[399307385,1766274637611,-151.0,0.00012598,2]
[399307387,1766274637621,-151.0,0.00012598,2]
[399307389,1766274637630,-151.0,0.00012598,2]
[399307390,1766274637641,-151.0,0.00012598,2]
[399307391,1766274637650,-151.0,0.00012598,2]
[399307392,1766274637660,-151.0,0.00012598,2]
[399307393,1766274637670,-151.0,0.00012598,2]
[399307394,1766274637679,-151.0,0.00012598,2]
[399307395,1766274637689,-151.0,0.00012598,2]
[399307396,1766274637698,-151.0,0.00012598,2]
[399307397,1766274637708,-1213.70128937,0.00012605,3]
[399307398,1766274637717,-956.4328,0.00012613,2]
[399307400,1766274637726,-1000.0,0.00012613,2]
[399307402,1766274637735,-1127.0,0.00012619,2]
[399307404,1766274637745,-1939.0,0.00012644,2]
[399307405,1766274637755,-1009.0,0.0001267,2]
[399307406,1766274637764,-500.0,0.0001267,2]
[399307407,1766274637774,-206.95572497,0.00012766,2]
[399307408,1766274637783,-195.0,0.00012766,2]
[399307410,1766274637792,-300.0,0.00012766,2]
[399307411,1766274637802,-587.51,0.00012872,2]
[399307413,1766274637811,-500.0,0.00012944,2]
[399307415,1766274637820,-7792.06030951,0.00013,2]
[399307417,1766274637830,-1000.0,0.00013056,2]
[399307419,1766274637848,-587.51,0.00013146,2]